fUSD/lending_fUSD_20240114
["ID","MTS","AMOUNT","RATE_DAILY","PERIOD"]
[311621838,1705265546796,-682.65,0.00033698,2]
[311621839,1705265546807,-2191.12,0.00033698,2]
[311621840,1705265546818,-1823.86,0.00033698,2]
[311621841,1705265546829,-3000.0,0.00033698,2]
[311621842,1705265546839,-3000.0,0.00033698,2]
[311621843,1705265546849,-566.33,0.00033698,2]
[311621844,1705265546859,-602.37,0.00033698,2]
[311621845,1705265546869,-651.64,0.00033698,2]
[311621846,1705265546879,-883.91,0.00033698,2]
[311621847,1705265546890,-14316.0,0.00033698,2]
[311621848,1705265546900,-2214.32,0.00033698,2]
[311621849,1705265546910,-1750.64,0.00033698,2]
[311621850,1705265546921,-875.93,0.00033698,2]
[311621851,1705265546931,-500.0,0.00033698,2]
[311621852,1705265546940,-596.16,0.00033698,2]
[311621853,1705265546950,-846.65,0.00033698,2]
[311621854,1705265546959,-753.89,0.00033698,2]
[311621855,1705265546969,-1849.03,0.00033698,2]
[311621856,1705265546979,-500.0,0.00033698,2]
[311621857,1705265546989,-1112.66,0.00033698,2]
[311621858,1705265546999,-1725.14,0.00033698,2]
[311621859,1705265547008,-796.33,0.00033698,2]
[311621860,1705265547018,-500.0,0.00033698,2]
[311621861,1705265547028,-808.86,0.00033698,2]
[311621862,1705265547038,-899.24,0.00033698,2]
[311621863,1705265547049,-1429.98,0.00033698,2]
[311621864,1705265547059,-500.0,0.00033698,2]
[311621865,1705265547069,-524.71,0.00033698,2]
[311621866,1705265547079,-500.0,0.00033698,2]
[311621867,1705265547089,-1713.52,0.00033698,2]
[311621868,1705265547099,-1102.84,0.00033698,2]
[311621869,1705265547108,-1618.96,0.00033698,2]
[311621870,1705265547118,-1116.72,0.00033698,2]
[311621871,1705265547127,-2696.94,0.00033698,2]
[311621872,1705265547137,-500.0,0.00033698,2]
[311621873,1705265547146,-794.76,0.00033698,2]
[311621874,1705265547156,-500.0,0.00033698,2]
[311621875,1705265547167,-500.0,0.00033698,2]
[311621876,1705265547176,-724.53,0.00033698,2]
[311621877,1705265547186,-1597.13,0.00033698,2]
[311621878,1705265547196,-737.29,0.00033698,2]
[311621879,1705265547206,-622.57,0.00033698,2]
[311621880,1705265547216,-500.0,0.00033698,2]
[311621881,1705265547226,-1009.68,0.00033698,2]
[311621882,1705265547236,-640.35,0.00033698,2]
[311621883,1705265547246,-500.0,0.00033698,2]
[311621884,1705265547255,-500.0,0.00033698,2]
[311621885,1705265547265,-1595.29,0.00033698,2]
[311621886,1705265547275,-500.0,0.00033698,2]
[311621887,1705265547284,-917.26,0.00033698,2]
[311621888,1705265547294,-565.13,0.00033698,2]
[311621889,1705265547303,-4300.16,0.00033698,2]
[311621890,1705265547313,-2100.41,0.00033698,2]
[311621891,1705265547322,-1007.56,0.00033698,2]
[311621892,1705265547331,-776.73,0.00033698,2]
[311621893,1705265547341,-500.0,0.00033698,2]
[311621894,1705265547350,-5057.58,0.00033698,2]
[311621895,1705265547360,-500.0,0.00033698,2]
[311621896,1705265547370,-933.45,0.00033698,2]
[311621897,1705265547380,-531.05,0.00033698,2]
[311621898,1705265547389,-500.0,0.00033698,2]
[311621899,1705265547398,-1593.77,0.00033698,2]
[311621900,1705265547408,-720.02,0.00033698,2]
[311621901,1705265547421,-500.0,0.00033698,5]
[311621902,1705265547431,-500.0,0.00033698,2]
[311621903,1705265547440,-1573.4,0.00033698,2]
[311621904,1705265547449,-4742.8,0.00033698,2]
[311621905,1705265547459,-500.0,0.00033698,2]
[311621906,1705265547468,-500.0,0.00033698,2]
[311621907,1705265547478,-3392.17,0.00033698,2]
[311621908,1705265547487,-332.22,0.00033698,2]
[311621909,1705265547497,-881.88,0.00033698,2]
[311621910,1705265547506,-3302.73,0.00033698,2]
[311621911,1705265547516,-1145.63,0.00033698,2]
[311621912,1705265547525,-755.87,0.00033698,2]
[311621913,1705265547534,-225.94830437,0.00033698,2]
[311621914,1705265547544,-500.0,0.00033698,2]
[311621915,1705265547553,-3349.66,0.00033698,2]
[311621916,1705265547566,-699.61,0.00033698,2]
[311621917,1705265547575,-911.19,0.00033698,2]
[311621918,1705265547584,-500.0,0.00033698,2]
[311621919,1705265547594,-9373.54,0.00033698,2]
[311621920,1705265547603,-1446.11,0.00033698,2]
[311621921,1705265547613,-563.79,0.00033698,2]
[311621922,1705265548419,-1392.74,0.00033698,2]
[311621923,1705265548437,-500.0,0.00033698,2]
[311621924,1705265548454,-580.88,0.00033698,2]
[311621925,1705265548472,-9954.34,0.00033698,2]
[311621926,1705265548489,-1674.87,0.00033698,2]
[311621927,1705265548507,-2675.53,0.00033698,2]
[311621928,1705265548516,-1402.19,0.00033698,2]
[311621929,1705265548526,-638.69,0.00033698,2]
[311621930,1705265548535,-609.69,0.00033698,2]
[311621931,1705265548545,-617.65,0.00033698,2]
[311621932,1705265548554,-5600.69,0.00033698,2]
[311621933,1705265548563,-541.21,0.00033698,2]
[311621934,1705265548572,-830.84,0.00033698,2]
[311621935,1705265548580,-2246.95,0.00033698,2]
[311621936,1705265548589,-924.51,0.00033698,2]
[311621937,1705265548598,-3335.08,0.00033698,2]
[311621938,1705265548607,-10595.33,0.00033698,2]
[311621939,1705265548616,-500.0,0.00033698,2]
[311621940,1705265548625,-836.16,0.00033698,2]
[311621941,1705265548634,-500.0,0.00033698,2]
[311621942,1705265548643,-468.17680385,0.00033698,2]
[311621943,1705265548654,-646.01,0.00033698,2]
[311621944,1705265548663,-500.0,0.00033698,2]
[311621945,1705265548672,-500.0,0.00033698,2]
[311621946,1705265548681,-500.0,0.00033698,2]
[311621947,1705265548690,-500.0,0.00033698,2]
[311621948,1705265548700,-500.0,0.00033698,2]
[311621949,1705265548709,-1637.96,0.00033698,2]
[311621950,1705265548719,-500.0,0.00033698,2]
[311621951,1705265548728,-3225.32,0.00033698,2]
[311621952,1705265548737,-500.0,0.00033698,2]
[311621953,1705265548747,-3401.5,0.00033698,2]
[311621954,1705265548761,-699.52,0.00033698,2]
[311621955,1705265548770,-1658.41,0.00033698,2]
[311621956,1705265548780,-500.0,0.00033698,2]
[311621957,1705265548789,-898.47,0.00033698,2]
[311621958,1705265548799,-747.38,0.00033698,2]
[311621959,1705265548808,-502.0,0.00033698,2]
[311621960,1705265548817,-3294.26,0.00033698,2]
[311621961,1705265548827,-781.12,0.00033698,2]
[311621962,1705265548837,-2934.21,0.00033698,2]
[311621963,1705265548845,-28330.08,0.00033698,2]
[311621964,1705265548855,-1324.02,0.00033698,2]
[311621965,1705265548864,-915.45,0.00033698,2]
[311621966,1705265548873,-500.0,0.00033698,2]
[311621967,1705265548882,-1385.96,0.00033698,2]
[311621968,1705265548900,-2258.81,0.00033698,2]
[311621969,1705265548909,-509.43,0.00033698,2]
[311621970,1705265548920,-993.95,0.00033698,2]
[311621971,1705265548929,-630.07,0.00033698,2]
[311621972,1705265548938,-500.0,0.00033698,2]
[311621973,1705265548948,-663.38,0.00033698,2]
[311621974,1705265548958,-534.75,0.00033698,2]
[311621975,1705265548967,-7238.69,0.00033698,2]
[311621976,1705265548976,-2077.72,0.00033698,2]
[311621977,1705265548986,-1376.21,0.00033698,2]
[311621978,1705265548996,-500.0,0.00033698,2]
[311621979,1705265549004,-1332.9,0.00033698,2]
[311621980,1705265549013,-500.0,0.00033698,2]
[311621981,1705265549022,-1108.32,0.00033698,2]
[311621982,1705265549032,-560.24,0.00033698,2]
[311621983,1705265549041,-691.92,0.00033698,2]
[311621984,1705265549049,-500.0,0.00033698,2]
[311621985,1705265549058,-644.63,0.00033698,2]
[311621986,1705265549067,-917.54,0.00033698,2]
[311621987,1705265549077,-500.0,0.00033698,2]
[311621988,1705265549086,-4169.87,0.00033698,2]
[311621989,1705265549096,-503.48,0.00033698,2]
[311621990,1705265549105,-810.05,0.00033698,2]
[311621991,1705265549115,-799.56,0.00033698,2]
[311621992,1705265549123,-500.0,0.00033698,2]
[311621993,1705265549133,-767.29,0.00033698,2]
[311621994,1705265549142,-907.45,0.00033698,2]
[311621995,1705265549151,-733.07,0.00033698,2]
[311621996,1705265549160,-500.0,0.00033698,2]
[311621997,1705265549169,-6057.77,0.00033698,2]
[311621998,1705265549179,-1447.4,0.00033698,2]
[311621999,1705265549188,-1557.23,0.00033698,2]
[311622000,1705265549197,-1520.88,0.00033698,2]
[311622001,1705265549206,-500.0,0.00033698,2]
[311622002,1705265549215,-1561.7,0.00033698,2]
[311622003,1705265549224,-2650.58,0.00033698,2]
[311622004,1705265549232,-16510.87,0.00033698,2]
[311622005,1705265549241,-500.0,0.00033698,2]
[311622006,1705265549251,-500.0,0.00033698,2]
[311622007,1705265549261,-1302.74,0.00033698,2]
[311622008,1705265549271,-587.88,0.00033698,2]
[311622009,1705265549280,-3126.96,0.00033698,2]
[311622010,1705265549289,-1648.36,0.00033698,2]
[311622011,1705265549299,-500.0,0.00033698,2]
[311622012,1705265549308,-1892.55,0.00033698,2]
[311622013,1705265549318,-500.0,0.00033698,2]
[311622014,1705265549328,-3105.59,0.00033698,2]
[311622015,1705265549337,-8950.09,0.00033698,2]
[311622016,1705265549347,-1582.78,0.00033698,2]
[311622017,1705265549357,-1119.58,0.00033698,2]
[311622018,1705265549366,-810.88,0.00033698,2]
[311622019,1705265549375,-925.46,0.00033698,2]
[311622020,1705265549385,-1362.22,0.00033698,2]
[311622021,1705265549394,-1419.16,0.00033698,2]
[311622022,1705265549404,-840.38,0.00033698,2]
[311622023,1705265549414,-500.0,0.00033698,2]
[311622024,1705265549424,-1153.75,0.00033698,2]
[311622025,1705265549434,-965.13,0.00033698,2]
[311622026,1705265549443,-707.1,0.00033698,2]
[311622027,1705265549451,-500.0,0.00033698,2]
[311622028,1705265549462,-500.0,0.00033698,2]
[311622029,1705265549471,-736.07,0.00033698,2]
[311622030,1705265549481,-1354.92,0.00033698,2]
[311622031,1705265549490,-622.53,0.00033698,2]
[311622032,1705265549500,-5875.67,0.00033698,2]
[311622033,1705265549509,-836.71,0.00033698,2]
[311622034,1705265549518,-784.6,0.00033698,2]
[311622035,1705265549528,-3535.86,0.00033698,2]
[311622036,1705265549537,-1339.45,0.00033698,2]
[311622037,1705265549546,-726.02,0.00033698,2]
[311622038,1705265549556,-2000.77,0.00033698,2]
[311622039,1705265549565,-772.02,0.00033698,2]
[311622040,1705265549574,-4196.76,0.00033698,2]
[311622041,1705265549584,-874.57,0.00033698,2]
[311622042,1705265549593,-1070.23,0.00033698,2]
[311622043,1705265549602,-563.09,0.00033698,2]
[311622044,1705265549612,-500.0,0.00033698,2]
[311622045,1705265549621,-803.67,0.00033698,2]
[311622046,1705265549630,-869.2,0.00033698,2]
[311622047,1705265549639,-500.0,0.00033698,2]
[311622048,1705265549648,-500.0,0.00033698,2]
[311622049,1705265549657,-581.19,0.00033698,2]
[311622050,1705265549667,-969.9,0.00033698,2]
[311622051,1705265549676,-2946.84,0.00033698,2]
[311622052,1705265549688,-711.01,0.00033698,2]
[311622053,1705265549697,-1464.74,0.00033698,2]
[311622054,1705265549706,-552.27,0.00033698,2]
[311622055,1705265549715,-633.03,0.00033698,2]
[311622056,1705265549724,-1928.32,0.00033698,2]
[311622057,1705265549732,-1109.23,0.00033698,2]
[311622058,1705265549742,-1643.12,0.00033698,2]
[311622059,1705265549752,-1980.27,0.00033698,2]
[311622060,1705265549762,-1413.08,0.00033698,2]
[311622061,1705265549771,-503.28,0.00033698,2]
[311622062,1705265549780,-500.0,0.00033698,2]
[311622063,1705265549791,-500.0,0.00033698,2]
[311622064,1705265549802,-581.57381937,0.00033698,2]
[311622065,1705265549813,-532.18,0.00033698,2]
[311622066,1705265549823,-560.65,0.00033698,2]
[311622067,1705265549836,-710.77,0.00033698,2]
[311622068,1705265549845,-1886.92,0.00033698,2]
[311622069,1705265549854,-610.95,0.00033698,2]
[311622070,1705265549863,-500.0,0.00033698,2]
[311622071,1705265549872,-848.62,0.00033698,2]
[311622072,1705265549881,-4590.19,0.00033698,2]
[311622073,1705265549891,-567.58,0.00033698,2]
[311622074,1705265549900,-500.0,0.00033698,2]
[311622075,1705265549909,-1287.53,0.00033698,2]
[311622076,1705265549920,-151.0,0.00033698,7]
[311622077,1705265549930,-202.0,0.000337,2]
[311622078,1705265549939,-993.0671,0.000337,2]
[311622079,1705265549949,-4989.5762,0.000337,2]
[311622080,1705265549958,-38334.7965764,0.00033717,2]
[311622081,1705265549967,-36736.0254114,0.00033717,2]
[311622082,1705265549976,-35137.2542464,0.00033717,2]
[311622083,1705265549985,-33538.4830815,0.00033717,2]
[311622084,1705265549994,-31939.7119165,0.00033717,2]
[311622085,1705265550003,-30340.9407515,0.00033717,2]
[311622086,1705265550012,-450.0,0.0003374,3]
[311622087,1705265550022,-150.0,0.00033742,2]
[311622088,1705265550031,-153.84,0.0003379,2]
[311622089,1705265550040,-10823.65,0.00033885,2]
[311622090,1705265550050,-108448.28,0.00033885,2]
[311622091,1705265550059,-23670.69,0.00033885,2]
[311622092,1705265550068,-28926.27,0.00033885,2]
[311622093,1705265550078,-5453.22,0.00033885,2]
[311622094,1705265550087,-150855.13,0.00033885,2]
[311622095,1705265550096,-47206.93,0.00033885,2]
[311622096,1705265550106,-60807.65,0.00033885,2]
[311622097,1705265550115,-19960.0,0.00033885,2]
[311622098,1705265550124,-1008.954,0.00033898,2]
[311622099,1705265550133,-288.387,0.00033898,2]
[311622100,1705265550143,-3000.0,0.000339,2]
[311622101,1705265550152,-500.0,0.00033972,2]
[311622102,1705265550161,-500.0,0.00033972,2]
[311622103,1705265550171,-500.0,0.00033972,2]
[311622104,1705265550180,-500.0,0.00033972,2]
[311622105,1705265550189,-528.74,0.00033972,2]
[311622106,1705265550198,-502.48,0.00033972,2]
[311622107,1705265550207,-500.0,0.00033972,2]
[311622108,1705265550216,-500.0,0.00033972,2]
[311622109,1705265550225,-770.53,0.00033972,2]
[311622110,1705265550234,-500.0,0.00033972,2]
[311622111,1705265550245,-926.02,0.00033972,2]
[311622112,1705265550254,-1147.85,0.00033972,2]
[311622113,1705265550263,-500.0,0.00033972,2]
[311622114,1705265550272,-500.0,0.00033972,2]
[311622115,1705265550282,-541.41,0.00033972,2]
[311622116,1705265550291,-500.0,0.00033972,2]
[311622117,1705265550300,-500.0,0.00033972,2]
[311622118,1705265550311,-500.0,0.00033972,2]
[311622119,1705265550321,-709.9,0.00033972,2]
[311622120,1705265550331,-500.0,0.00033972,2]
[311622121,1705265550340,-500.0,0.00033972,2]
[311622122,1705265550349,-656.39,0.00033972,2]
[311622123,1705265550358,-500.0,0.00033972,2]
[311622124,1705265550367,-637.01548107,0.00033972,2]
[311622125,1705265550376,-500.0,0.00033972,2]
[311622126,1705265550385,-500.0,0.00033972,2]
[311622127,1705265550394,-585.77,0.00033972,2]
[311622128,1705265550404,-500.0,0.00033972,2]
[311622129,1705265550415,-646.67,0.00033972,2]
[311622130,1705265550424,-500.0,0.00033972,2]
[311622131,1705265550433,-500.0,0.00033972,2]
[311622132,1705265550443,-518.76,0.00033972,2]
[311622133,1705265550453,-500.0,0.00033972,2]
[311622134,1705265550463,-500.0,0.00033972,2]
[311622135,1705265550473,-500.0,0.00033972,2]
[311622136,1705265550482,-673.27,0.00033972,2]
[311622137,1705265550492,-653.68,0.00033972,2]
[311622138,1705265550502,-640.51,0.00033972,2]
[311622139,1705265550511,-595.86,0.00033972,2]
[311622140,1705265550521,-565.95,0.00033972,2]
[311622141,1705265550531,-500.0,0.00033972,2]
[311622142,1705265550540,-588.78,0.00033972,2]
[311622143,1705265550550,-645.55,0.00033972,2]
[311622144,1705265550559,-683.34,0.00033972,2]
[311622145,1705265550568,-551.22,0.00033972,2]
[311622146,1705265550579,-500.0,0.00033972,2]
[311622147,1705265550589,-594.67,0.00033972,2]
[311622148,1705265550599,-500.0,0.00033972,2]
[311622149,1705265550608,-963.4,0.00033972,2]
[311622150,1705265550617,-601.15,0.00033972,2]
[311622151,1705265550627,-665.95,0.00033972,2]
[311622152,1705265550636,-500.0,0.00033972,2]
[311622153,1705265550646,-500.0,0.00033972,2]
[311622154,1705265550655,-800.79,0.00033972,2]
[311622155,1705265550664,-562.08,0.00033972,2]
[311622156,1705265550674,-626.87,0.00033972,2]
[311622157,1705265550684,-500.0,0.00033972,2]
[311622158,1705265550693,-500.0,0.00033972,2]
[311622159,1705265550703,-727.57,0.00033972,2]
[311622160,1705265550712,-560.21,0.00033972,2]
[311622161,1705265550722,-500.0,0.00033972,2]
[311622162,1705265550731,-500.0,0.00033972,2]
[311622163,1705265550740,-982.04,0.00033972,2]
[311622164,1705265550750,-600.07,0.00033972,2]
[311622165,1705265550759,-1048.4,0.00033972,2]
[311622166,1705265550770,-500.0,0.00033972,2]
[311622167,1705265550780,-500.0,0.00033972,2]
[311622168,1705265550789,-950.82,0.00033972,2]
[311622169,1705265550799,-775.5,0.00033972,2]
[311622170,1705265550809,-500.0,0.00033972,2]
[311622171,1705265550818,-806.58,0.00033972,2]
[311622172,1705265550828,-748.97,0.00033972,2]
[311622173,1705265550838,-500.0,0.00033972,2]
[311622174,1705265550847,-500.0,0.00033972,2]
[311622175,1705265550856,-544.49,0.00033972,2]
[311622176,1705265550865,-500.0,0.00033972,2]
[311622177,1705265550874,-500.0,0.00033972,2]
[311622178,1705265550884,-500.0,0.00033972,2]
[311622179,1705265550893,-671.61,0.00033972,2]
[311622180,1705265550903,-500.0,0.00033972,2]
[311622181,1705265550913,-500.0,0.00033972,2]
[311622182,1705265550926,-500.0,0.00033972,2]
[311622183,1705265550936,-500.0,0.00033972,2]
[311622184,1705265550946,-506.63388004,0.00033972,2]
[311622185,1705265550955,-602.2,0.00033972,2]
[311622186,1705265550965,-769.86,0.00033972,2]
[311622187,1705265550975,-500.0,0.00033972,2]
[311622188,1705265550985,-500.0,0.00033972,2]
[311622189,1705265550994,-500.0,0.00033972,2]
[311622190,1705265551003,-500.0,0.00033972,2]
[311622191,1705265551013,-500.0,0.00033972,2]
[311622192,1705265551023,-500.0,0.00033972,2]
[311622193,1705265551033,-692.82,0.00033972,2]
[311622194,1705265551043,-507.31,0.00033972,2]
[311622195,1705265551052,-500.0,0.00033972,2]
[311622196,1705265551062,-500.0,0.00033972,2]
[311622197,1705265551071,-729.84,0.00033972,2]
[311622198,1705265551081,-536.68,0.00033972,2]
[311622199,1705265551091,-583.46,0.00033972,2]
[311622200,1705265551101,-345.48,0.00033972,2]
[311622201,1705265551111,-554.15,0.00033972,2]
[311622202,1705265551121,-500.0,0.00033972,2]
[311622203,1705265551130,-500.0,0.00033972,2]
[311622204,1705265551139,-1000.1,0.00033972,2]
[311622205,1705265551149,-500.0,0.00033972,2]
[311622206,1705265551158,-702.71,0.00033972,2]
[311622207,1705265551170,-500.0,0.00033972,2]
[311622208,1705265551179,-793.74,0.00033972,2]
[311622209,1705265551189,-923.77,0.00033972,2]
[311622210,1705265551199,-500.0,0.00033972,2]
[311622211,1705265551209,-500.0,0.00033972,2]
[311622212,1705265551219,-629.36,0.00033972,2]
[311622213,1705265551229,-500.0,0.00033972,2]
[311622214,1705265551238,-867.3,0.00033972,2]
[311622215,1705265551247,-500.0,0.00033972,2]
[311622216,1705265551257,-500.0,0.00033972,2]
[311622217,1705265551266,-500.0,0.00033972,2]
[311622218,1705265551275,-581.81,0.00033972,2]
[311622219,1705265551285,-624.05,0.00033972,2]
[311622220,1705265551294,-830.39,0.00033972,2]
[311622221,1705265551304,-677.4,0.00033972,2]
[311622222,1705265551313,-1100.99,0.00033972,2]
[311622223,1705265551324,-525.17,0.00033972,2]
[311622224,1705265551333,-500.0,0.00033972,2]
[311622225,1705265551343,-312.09034173,0.00033972,2]
[311622226,1705265551353,-586.11,0.00033972,2]
[311622227,1705265551363,-500.0,0.00033972,2]
[311622228,1705265551373,-500.0,0.00033972,2]
[311622229,1705265551383,-1229.11,0.00033972,2]
[311622230,1705265551392,-1106.76,0.00033972,2]
[311622231,1705265551402,-500.0,0.00033972,2]
[311622232,1705265551413,-500.0,0.00033972,2]
[311622233,1705265551425,-894.93,0.00033972,2]
[311622234,1705265551435,-608.9,0.00033972,2]
[311622235,1705265551444,-500.0,0.00033972,2]
[311622236,1705265551454,-946.64,0.00033972,2]
[311622237,1705265551464,-500.0,0.00033972,2]
[311622238,1705265551473,-619.49,0.00033972,2]
[311622239,1705265551483,-868.77,0.00033972,2]
[311622240,1705265551492,-500.0,0.00033972,2]
[311622241,1705265551502,-578.25,0.00033972,2]
[311622242,1705265551511,-500.0,0.00033972,2]
[311622243,1705265551521,-500.0,0.00033972,2]
[311622244,1705265551531,-500.0,0.00033972,2]
[311622245,1705265551540,-391.31182507,0.00033972,2]
[311622246,1705265551550,-532.95,0.00033972,2]
[311622247,1705265551559,-1204.84,0.00033972,2]
[311622248,1705265551569,-500.0,0.00033972,2]
[311622249,1705265551746,-621.29249265,0.00033972,2]
[311622250,1705265551763,-545.29,0.00033972,2]
[311622251,1705265551772,-500.0,0.00033972,2]
[311622252,1705265551782,-670.63,0.00033972,2]
[311622253,1705265551792,-523.04,0.00033972,2]
[311622254,1705265551801,-500.0,0.00033972,2]
[311622255,1705265551810,-500.0,0.00033972,2]
[311622256,1705265551818,-636.75,0.00033972,2]
[311622257,1705265551827,-596.02,0.00033972,2]
[311622258,1705265551836,-1015.13,0.00033972,2]
[311622259,1705265551846,-500.0,0.00033972,2]
[311622260,1705265551855,-1744.35,0.00033972,2]
[311622261,1705265551864,-851.16,0.00033972,2]
[311622262,1705265551873,-536.9,0.00033972,2]
[311622263,1705265551883,-846.45,0.00033972,2]
[311622264,1705265551893,-500.0,0.00033972,2]
[311622265,1705265551902,-289.58761895,0.00033972,2]
[311622266,1705265551912,-607.07,0.00033972,2]
[311622267,1705265551923,-500.0,0.00033972,2]
[311622268,1705265551932,-1022.21,0.00033972,2]
[311622269,1705265551941,-797.3,0.00033972,2]
[311622270,1705265551951,-500.0,0.00033972,2]
[311622271,1705265551960,-560.52,0.00033972,2]
[311622272,1705265551970,-546.08,0.00033972,2]
[311622273,1705265551979,-1547.25,0.00033972,2]
[311622274,1705265551989,-715.62,0.00033972,2]
[311622275,1705265551999,-500.0,0.00033972,2]
[311622276,1705265552008,-900.1,0.00033972,2]
[311622277,1705265552017,-500.0,0.00033972,2]
[311622278,1705265552027,-500.0,0.00033972,2]
[311622279,1705265552037,-1245.22,0.00033972,2]
[311622280,1705265552047,-380.49489329,0.00033972,2]
[311622281,1705265552056,-2718.67,0.00033972,2]
[311622282,1705265552066,-679.75,0.00033972,2]
[311622283,1705265552076,-1251.06,0.00033972,2]
[311622284,1705265552085,-650.18,0.00033972,2]
[311622285,1705265552094,-500.0,0.00033972,2]
[311622286,1705265552104,-645.91781783,0.00033972,2]
[311622287,1705265552113,-983.25,0.00033972,2]
[311622288,1705265552123,-2249.92,0.00033972,2]
[311622289,1705265552133,-500.0,0.00033972,2]
[311622290,1705265552142,-595.82,0.00033972,2]
[311622291,1705265552151,-500.0,0.00033972,2]
[311622292,1705265552161,-1879.49,0.00033972,2]
[311622293,1705265552173,-979.35,0.00033972,2]
[311622294,1705265552182,-645.75,0.00033972,2]
[311622295,1705265552191,-629.35,0.00033972,2]
[311622296,1705265552200,-689.93,0.00033972,2]
[311622297,1705265552210,-905.95,0.00033972,2]
[311622298,1705265552219,-669.74,0.00033972,2]
[311622299,1705265552229,-658.52,0.00033972,2]
[311622300,1705265552238,-500.0,0.00033972,2]
[311622301,1705265552247,-500.0,0.00033972,2]
[311622302,1705265552257,-500.0,0.00033972,2]
[311622303,1705265552267,-1000.92,0.00033972,2]
[311622304,1705265552276,-584.45,0.00033972,2]
[311622305,1705265552286,-500.0,0.00033972,2]
[311622306,1705265552295,-500.0,0.00033972,2]
[311622307,1705265552305,-500.0,0.00033972,2]
[311622308,1705265552314,-596.4,0.00033972,2]
[311622309,1705265552356,-675.0,0.00033972,2]
[311622310,1705265552367,-500.0,0.00033972,2]
[311622311,1705265552376,-500.0,0.00033972,2]
[311622312,1705265552386,-679.48,0.00033972,2]
[311622313,1705265552395,-886.22,0.00033972,2]
[311622314,1705265552405,-698.99,0.00033972,2]
[311622315,1705265552414,-567.27,0.00033972,2]
[311622316,1705265552425,-1207.58,0.00033972,2]
[311622317,1705265552434,-692.03,0.00033972,2]
[311622318,1705265552443,-4337.15,0.00033972,2]
[311622319,1705265552453,-1455.02,0.00033972,2]
[311622320,1705265552463,-718.79,0.00033972,2]
[311622321,1705265552473,-852.88,0.00033972,2]
[311622322,1705265552482,-500.0,0.00033972,2]
[311622323,1705265552491,-500.0,0.00033972,2]
[311622324,1705265552501,-500.0,0.00033972,2]
[311622325,1705265552512,-902.9,0.00033972,2]
[311622326,1705265552521,-500.0,0.00033972,5]
[311622327,1705265552531,-500.0,0.00033972,2]
[311622328,1705265552540,-541.15,0.00033972,2]
[311622329,1705265552550,-746.49,0.00033972,2]
[311622330,1705265552559,-361.48159782,0.00033972,2]
[311622331,1705265552569,-500.0,0.00033972,2]
[311622332,1705265552578,-7127.94,0.00033972,2]
[311622333,1705265552587,-727.08,0.00033972,2]
[311622334,1705265552597,-918.26,0.00033972,2]
[311622335,1705265552606,-2334.97,0.00033972,2]
[311622336,1705265552615,-571.94,0.00033972,2]
[311622337,1705265552624,-520.99,0.00033972,2]